bitfinex-derivatives/quotes_ETHF0:USTF0_20250110
["timestamp","ask_amount","ask_price","bid_price","bid_amount"]
[1736506738997,0.30095,3323.0,3322.7,3.675]
[1736506738998,0.30093,3323.1,3322.9,0.30095]
[1736506739495,0.30093,3323.1,3322.8,0.30096]
[1736506739702,0.30093,3323.2,3322.8,0.30096]
[1736506739903,0.44671032,3323.3,3322.8,0.30096]
[1736506739904,0.30094,3323.1,3322.8,0.30096]
[1736506740104,0.44671032,3323.3,3322.8,0.30096]
[1736506740401,0.30095,3323.0,3322.8,0.30096]
[1736506740693,0.30094,3323.0,3322.8,0.30096]
[1736506742004,0.44671032,3323.3,3322.7,3.675]
[1736506742198,0.30094,3323.1,3322.9,0.30095]
[1736506742596,0.30094,3323.1,3322.7,3.675]
[1736506742802,0.30094,3323.1,3322.9,0.30094]
[1736506743302,0.44671032,3323.3,3322.7,3.675]
[1736506743503,0.74763032,3323.3,3322.9,1.8413897]
[1736506743804,0.74763032,3323.3,3323.1,0.30093]
[1736506744303,0.30093,3323.2,3323.0,0.30094]
[1736506744605,0.74763032,3323.3,3323.1,0.30093]
[1736506744804,0.30093,3323.2,3323.0,0.30094]
[1736506745304,0.30094,3323.1,3322.9,2.1423397]
[1736506746002,0.30094,3323.0,3322.8,0.30095]
[1736506746203,0.30094,3323.0,3322.8,0.30096]
[1736506746395,0.30094,3323.1,3322.9,0.30095]
[1736506746595,0.30094,3323.1,3322.7,3.675]
[1736506746596,0.30096,3322.9,3322.7,3.50877]
[1736506746792,0.30096,3322.9,3322.8,0.30096]
[1736506747002,0.896,3323.0,3322.7,3.50877]
[1736506747198,0.896,3323.0,3322.8,0.30096]
[1736506747403,0.30095,3322.9,3322.8,0.30096]
[1736506747604,0.896,3323.0,3322.7,3.2078]
[1736506748000,0.30098,3322.6,3322.5,40.8]
[1736506748802,0.896,3323.0,3322.2,0.8901]
[1736506749108,0.4525,3322.5,3322.1,1.8413897]
[1736506749408,0.7535,3322.5,3322.3,0.301]
[1736506749604,0.4525,3322.5,3322.3,0.301]
[1736506749811,0.301,3322.4,3322.3,0.301]
[1736506750004,0.301,3322.4,3322.2,0.4476]
[1736506750309,0.301,3322.4,3322.3,0.30101]
[1736506750806,0.30102,3322.3,3322.2,0.30101]
[1736506751108,0.30097,3322.8,3322.6,0.30098]
[1736506751303,0.4519,3322.9,3322.8,0.30096]
[1736506751699,0.896,3323.0,3322.9,0.30095]
[1736506752007,0.75283,3323.2,3323.0,0.30094]
[1736506752205,0.75283,3323.2,3322.7,3.2281897]
[1736506752404,0.4519,3323.2,3322.7,3.2281897]
[1736506752605,0.4519,3323.2,3322.9,0.30095]
[1736506752606,0.75283,3323.2,3322.9,0.30095]
[1736506752908,0.30094,3323.1,3322.8,0.30096]
[1736506754298,0.75283,3323.2,3322.9,0.30095]
[1736506754909,0.75283,3323.2,3323.0,0.30094]
[1736506755411,0.30094,3323.1,3322.9,0.30095]
[1736506755602,0.4519,3323.2,3322.9,0.30095]
[1736506755910,0.75283,3323.2,3322.9,0.30095]
[1736506756708,0.4519,3323.2,3322.8,5.04439457]
[1736506757013,0.30094,3323.1,3322.8,5.04439457]
[1736506757608,0.4519,3323.2,3322.8,4.74343457]
[1736506758210,0.30095,3323.0,3322.7,5.96140457]
[1736506758405,0.30095,3323.0,3322.7,5.66043457]
[1736506758615,0.30095,3323.0,3322.8,0.30096]
[1736506758913,0.30094,3323.1,3322.8,0.30096]
[1736506759614,0.30093,3323.1,3322.8,0.30096]
[1736506759802,0.4519,3323.2,3322.7,0.74246]
[1736506760008,0.4519,3323.2,3322.6,7.95123457]
[1736506760209,0.30096,3322.9,3322.6,8.25221457]
[1736506760810,0.30097,3322.7,3322.6,7.95123457]
[1736506761910,0.30097,3322.7,3322.6,3.2078]
[1736506762514,0.30097,3322.7,3322.1,47.38482427]
[1736506762515,0.30102,3322.2,3322.1,7.95123457]
[1736506762906,3.2078,3322.5,3322.1,4.74343457]
[1736506763309,0.30102,3322.2,3322.1,4.74343457]
[1736506764118,0.30102,3322.2,3321.9,0.73134]
[1736506764318,3.2078,3322.5,3321.9,41.2303]
[1736506764714,0.30103,3322.1,3321.9,41.53134]
[1736506764918,0.75233,3322.0,3321.9,41.2303]
[1736506765216,0.4513,3322.0,3321.7,3.2078]
[1736506765412,0.30105,3321.8,3321.7,3.2078]
[1736506765609,0.4645,3321.9,3321.7,3.2078]
[1736506765905,0.30105,3321.8,3321.7,3.2078]
[1736506766311,3.2078,3322.5,3321.7,3.2078]
[1736506766512,0.30103,3322.1,3321.9,2.1424297]
[1736506766818,0.30104,3322.0,3321.7,3.96185]
[1736506767115,0.30104,3322.0,3321.9,0.4618]
[1736506768317,0.30103,3322.1,3321.9,0.76284]
[1736506768921,0.30103,3322.1,3321.9,0.4618]
[1736506769121,0.30103,3322.0,3321.9,0.4618]
[1736506769620,0.30105,3321.8,3321.7,3.2078]
[1736506770124,0.30106,3321.7,3321.6,0.4402]
[1736506770416,0.77306,3321.7,3321.6,0.4402]
[1736506770627,0.30108,3321.5,3321.3,3.2078]
[1736506770922,0.30107,3321.6,3321.3,3.648]
[1736506771218,0.30108,3321.5,3321.3,3.648]
[1736506771421,0.30109,3321.5,3321.3,3.648]
[1736506771717,0.30109,3321.4,3321.3,3.648]
[1736506776127,0.472,3321.7,3321.3,3.648]
[1736506776128,0.30109,3321.5,3321.3,3.648]
[1736506776419,0.30109,3321.5,3321.3,3.94909]
[1736506776924,0.30108,3321.5,3321.3,3.94909]
[1736506777517,0.472,3321.7,3321.3,3.648]
[1736506777923,0.30109,3321.4,3321.3,3.648]
[1736506778223,0.30108,3321.5,3321.3,3.9491]
[1736506778522,11.86414627,3323.3,3321.3,9.959]
[1736506778727,0.30095,3323.0,3322.6,3.2078]
[1736506778917,0.30093,3323.2,3322.7,0.30096]
[1736506779112,11.86414627,3323.3,3322.8,40.8]
[1736506779425,0.30093,3323.2,3322.8,40.8]
[1736506779621,0.30093,3323.2,3322.8,0.30096]
[1736506779820,0.30093,3323.2,3322.6,3.2078]
[1736506780021,0.30093,3323.1,3322.8,0.30096]
[1736506780519,0.30093,3323.2,3322.8,0.30096]
[1736506780920,0.30093,3323.2,3322.9,0.30095]
[1736506781528,0.30213032,3323.3,3323.0,0.30094]
[1736506781919,0.30093,3323.2,3322.9,0.30095]
[1736506782323,0.00121032,3323.3,3322.8,2.2732897]
[1736506782626,0.00121032,3323.3,3323.0,0.30094]
[1736506782925,0.00121032,3323.3,3322.8,0.4319]
[1736506783127,0.30094,3323.1,3322.8,0.4319]
[1736506783327,0.47381032,3323.3,3322.8,0.4319]
[1736506783730,0.30095,3323.0,3322.8,0.4319]
[1736506785226,0.47381032,3323.3,3322.8,0.4319]
[1736506785426,0.30094,3323.1,3322.8,0.73285]
[1736506786233,0.30095,3323.0,3322.8,0.4319]
[1736506786530,0.30094,3323.1,3322.8,0.73286]
[1736506786723,0.30094,3323.0,3322.8,0.73286]
[1736506787030,0.47381032,3323.3,3322.8,0.73286]
[1736506787331,0.30094,3323.1,3322.8,0.73286]
[1736506787727,0.47381032,3323.3,3322.8,0.73286]
[1736506787929,0.30095,3323.0,3322.8,0.73286]
[1736506788424,0.47381032,3323.3,3322.6,3.2078]
[1736506788425,0.30097,3322.7,3322.6,3.2078]
[1736506788627,0.4433,3322.9,3322.1,2.2778897]
[1736506788823,0.4433,3322.9,3322.2,3.50881]
[1736506788824,0.30099,3322.5,3322.2,3.50881]
[1736506789017,0.4566,3322.8,3322.2,3.2078]
[1736506789330,0.30101,3322.3,3322.2,3.2078]
[1736506789726,0.30104,3322.0,3321.8,5.0491897]
[1736506789925,0.4433,3322.2,3321.8,3.2078]
[1736506790120,0.30104,3321.9,3321.8,3.2078]
[1736506790425,0.4708,3322.1,3321.2,3.2078]
[1736506790426,0.30109,3321.4,3321.2,3.2078]
[1736506790629,0.30109,3321.5,3321.2,3.5089]
[1736506790831,3.6786,3322.1,3321.2,3.2078]
[1736506791023,0.3011,3321.3,3321.2,3.2078]
[1736506791329,0.3011,3321.3,3321.2,44.0078]
[1736506791828,0.3011,3321.3,3321.2,3.2078]
[1736506797821,0.3011,3321.3,3320.8,3.2078]
[1736506797822,0.30113,3320.9,3320.8,3.2078]
[1736506798037,0.4667,3321.2,3320.5,43.3833497]
[1736506798531,0.4667,3321.2,3320.5,2.2821897]
[1736506798532,0.30116,3320.7,3320.5,2.2821897]
[1736506798734,0.30116,3320.6,3320.5,0.4408]
[1736506799127,0.30117,3320.5,3320.4,44.0078]
[1736506799327,0.30117,3320.5,3320.4,40.8]
[1736506799631,0.30116,3320.6,3320.3,0.30118]
[1736506799835,0.30116,3320.6,3320.2,2.1425797]
[1736506800033,0.4361,3320.8,3320.3,0.30119]
[1736506800239,0.30117,3320.5,3320.2,41.10119]
[1736506800541,0.4361,3320.8,3320.0,2.5833997]
[1736506800542,0.30118,3320.4,3320.0,2.5833997]
[1736506801034,1.8413897,3320.7,3319.9,3.2078]
[1736506801235,1.8413897,3320.1,3319.6,3.2078]
[1736506801543,1.8413897,3320.1,3319.3,0.4625]
[1736506801544,0.30126,3319.6,3319.4,40.8]
[1736506801831,0.30126,3319.5,3319.4,40.8]
[1736506802034,0.30126,3319.5,3319.3,0.4625]
[1736506802244,1.8413897,3319.8,3319.3,0.4625]
[1736506802429,1.8413897,3319.8,3319.1,0.2]
[1736506802430,0.30125,3319.6,3319.1,0.2]
[1736506802629,4.95,3320.0,3319.1,0.2]
[1736506802827,0.04797065,3319.9,3319.4,3.2078]
[1736506803035,0.30123,3319.9,3319.4,3.50906]
[1736506803237,1.7422,3320.0,3319.4,3.2078]
[1736506803434,0.30123,3319.8,3319.4,3.50907]
[1736506803641,1.7422,3320.0,3319.4,3.2078]
[1736506804137,0.30124,3319.8,3319.5,0.4661]
[1736506804341,0.30123,3319.8,3319.5,0.4661]
[1736506805134,0.30123,3319.9,3319.5,0.76735]
[1736506805340,3.2078,3320.4,3319.6,1.8413897]
[1736506805639,3.50898,3320.4,3320.0,0.30122]
[1736506805830,3.50898,3320.4,3319.9,1.8413897]
[1736506805831,3.2078,3320.4,3320.1,0.4596]
[1736506806027,0.30119,3320.4,3320.1,0.4596]
[1736506806231,0.30118,3320.5,3320.1,0.7608]
[1736506806532,1.283,3320.7,3320.1,0.4596]
[1736506806737,0.3012,3320.2,3320.1,0.4596]
[1736506807041,1.283,3320.4,3320.1,0.4596]
[1736506807236,1.283,3320.9,3320.1,0.4596]
[1736506807435,0.04795563,3320.6,3320.1,0.4596]
[1736506807741,0.30119,3320.4,3320.1,0.4596]
[1736506807938,0.30119,3320.3,3320.1,0.4596]
[1736506808237,0.04795563,3320.6,3320.1,0.4596]
[1736506808742,0.3012,3320.3,3320.1,0.4596]
[1736506809543,0.04795563,3320.6,3320.1,0.4596]
[1736506809843,0.30118,3320.4,3320.1,0.4596]
[1736506810149,3.25575563,3320.6,3320.5,0.30117]
[1736506810335,0.04795563,3320.6,3320.5,2.1425597]
[1736506811237,0.04795563,3320.6,3320.4,3.2078]
[1736506811238,0.34911563,3320.6,3320.4,3.2078]
[1736506811546,0.30117,3320.5,3320.4,3.2078]
[1736506814040,0.04795563,3320.6,3320.4,3.2078]
[1736506814238,0.04795563,3320.6,3320.5,0.30117]
[1736506814647,3.2078,3321.3,3320.5,5.0]
[1736506814840,3.2078,3321.3,3321.2,0.30111]
[1736506815039,1.8413897,3322.0,3320.9,1.8413897]
[1736506815040,3.2078,3321.7,3320.9,1.8413897]
[1736506815243,0.30107,3321.6,3321.3,0.3011]
[1736506815440,0.30107,3321.6,3321.4,40.8]
[1736506815739,0.30109,3321.4,3321.1,0.4432]
[1736506816241,0.9934,3321.6,3321.2,40.8]
[1736506816543,0.3011,3321.4,3321.2,40.8]
[1736506816745,0.3011,3321.4,3321.1,0.4432]
[1736506817041,0.1494,3321.3,3321.2,2.1424897]
[1736506817343,0.1494,3321.3,3321.2,40.8]
[1736506817845,0.1494,3321.3,3321.2,41.2725]
[1736506818044,0.1494,3321.3,3321.2,41.57361]
[1736506818253,1.702,3321.3,3321.2,41.57361]
[1736506818642,1.702,3321.3,3321.2,0.4725]
[1736506819144,1.702,3321.3,3320.8,3.2078]
[1736506819344,0.30113,3320.9,3320.8,3.2078]
[1736506819536,0.30112,3321.1,3320.8,3.2078]
[1736506819737,0.4461,3321.2,3320.8,3.2078]
[1736506819937,0.74721,3321.2,3320.9,0.30113]
[1736506820145,0.4461,3321.2,3320.9,0.30113]
[1736506820348,0.74721,3321.2,3320.9,0.30113]
[1736506820540,0.4461,3321.2,3320.8,3.2078]
[1736506820741,0.30113,3321.0,3320.8,3.2078]
[1736506820943,1.2043,3321.2,3320.8,3.2078]
[1736506821145,1.50541,3321.2,3320.9,0.30113]
[1736506821349,1.2043,3321.2,3321.1,0.30112]
[1736506822348,1.2043,3321.2,3321.1,2.1425097]
[1736506823244,1.2043,3321.2,3321.1,1.8413897]
[1736506824447,1.2043,3321.2,3320.8,5.0491897]
[1736506825040,0.4877,3321.2,3321.1,1.8413897]
[1736506825649,0.4877,3321.2,3321.1,42.6413897]
[1736506825945,0.4877,3321.2,3320.8,5.0491897]
[1736506826146,0.30113,3320.9,3320.8,3.2078]
[1736506826845,0.30117,3320.5,3320.4,3.6516]
[1736506827052,0.30117,3320.5,3320.4,3.2078]
[1736506827247,3.2078,3320.9,3319.9,1.8413897]
[1736506827549,0.30122,3320.0,3319.9,1.8413897]
[1736506827943,0.4318,3320.4,3319.9,42.6413897]
[1736506828142,0.30122,3320.0,3319.9,42.6413897]
[1736506828447,0.30126,3319.5,3319.4,0.4613]
[1736506828643,0.75308,3319.9,3319.3,7.95123457]
[1736506828845,2.3124897,3320.2,3319.1,0.2]
[1736506828846,3.96089,3319.8,3319.1,0.2]
[1736506829047,0.30129,3319.2,3319.1,0.2]
[1736506832553,1.61409,3319.2,3319.1,0.2]
[1736506833161,1.3128,3319.2,3319.1,0.2]
[1736506833354,1.3128,3319.2,3319.1,0.5013]
[1736506833551,1.3128,3319.2,3319.1,0.2]
[1736506833750,1.3128,3319.2,3319.1,0.5013]
[1736506833751,0.0128,3319.2,3319.1,0.5013]
[1736506834049,0.30123,3319.9,3319.2,0.30129]
[1736506834256,0.30123,3319.9,3319.8,5.0491897]
[1736506834850,3.2078,3320.7,3319.8,10.0491897]
[1736506835160,3.2078,3320.7,3320.2,2.4548]
[1736506835567,3.2078,3320.7,3319.8,5.0491897]
[1736506835771,0.30122,3319.9,3319.8,5.0491897]
[1736506836464,0.04032,3319.9,3319.8,5.3504197]
[1736506836861,0.04032,3319.9,3319.8,46.1504197]
[1736506837257,0.04032,3319.9,3319.8,45.8491897]
[1736506837462,0.28122,3319.9,3319.8,45.8491897]
[1736506837856,0.58244,3319.9,3319.8,45.8491897]
[1736506838064,0.28122,3319.9,3319.8,45.8491897]
[1736506838273,0.28122,3319.9,3319.8,46.1504197]
[1736506838773,0.28122,3319.9,3319.8,45.8491897]
[1736506838968,0.52212,3319.9,3319.8,45.8491897]
[1736506839164,0.30124,3319.8,3319.5,6.82870377]
[1736506839475,0.52212,3319.9,3319.5,4.68605407]
[1736506839763,0.52212,3319.9,3319.5,0.30126]
[1736506839764,0.4511,3319.8,3319.5,0.30126]
[1736506839958,0.75234,3319.8,3319.5,0.30126]
[1736506840161,0.30124,3319.7,3319.6,40.8]
[1736506840564,0.4511,3319.8,3319.1,5.18734407]
[1736506840764,0.30128,3319.3,3319.1,4.88605407]
[1736506841075,0.30128,3319.3,3319.2,40.8]
[1736506842167,1.50628,3319.3,3319.2,40.8]
[1736506842563,0.30129,3319.2,3319.1,0.2]
[1736506842871,2.1426797,3319.2,3319.1,0.2]
[1736506843171,0.30129,3319.2,3319.1,0.2]
[1736506844664,2.1426797,3319.2,3319.1,0.2]
[1736506844871,1.8413897,3319.2,3318.4,3.2078]
[1736506845069,0.30135,3318.5,3318.4,3.2078]
[1736506845770,3.2078,3318.6,3318.0,3.2078]
[1736506845976,0.4412,3318.4,3318.0,3.2078]
[1736506846377,0.30138,3318.2,3318.0,3.2078]
[1736506846668,0.4412,3318.4,3318.1,0.30138]
[1736506846874,0.4412,3318.4,3318.2,0.30138]
[1736506847271,0.4412,3318.4,3318.0,3.2078]
[1736506847471,0.74256,3318.4,3318.1,0.30138]
[1736506847973,0.4412,3318.4,3317.6,44.0078]
[1736506848174,0.3014,3318.1,3317.8,0.30141]
[1736506848374,0.4694,3318.3,3317.7,0.30142]
[1736506848576,0.30139,3318.2,3317.9,0.3014]
[1736506848977,0.30138,3318.2,3317.9,0.3014]
[1736506849568,0.30138,3318.2,3317.7,0.30142]
[1736506849768,0.77077,3318.3,3317.7,1.8413897]
[1736506849972,0.4694,3318.3,3318.1,0.30138]
[1736506850665,0.4694,3318.3,3318.1,0.30139]
[1736506851071,0.77077,3318.3,3318.0,3.50919]
[1736506851267,0.4694,3318.3,3318.0,3.2078]
[1736506851474,0.4694,3318.3,3318.1,0.30138]
[1736506851676,0.7104,3318.3,3318.1,0.30138]
[1736506851969,0.7104,3318.3,3318.0,3.2078]
[1736506852276,0.30138,3318.2,3318.0,3.2078]
[1736506852578,0.30139,3318.1,3317.6,44.0078]
[1736506852872,0.30139,3318.1,3317.7,0.30142]
[1736506853068,3.0153897,3318.3,3317.6,44.0078]
[1736506853273,0.30142,3317.8,3317.4,0.30145]
[1736506853470,0.4772,3317.7,3317.4,0.30145]
[1736506853675,0.4772,3317.7,3317.3,0.4747]
[1736506853872,0.4772,3317.7,3317.6,0.30143]
[1736506854070,0.4772,3317.7,3317.6,3.50923]
[1736506854274,0.0402,3318.1,3318.0,0.3014]
[1736506854477,0.3014,3318.0,3317.8,0.30141]
[1736506854867,0.3014,3318.0,3317.9,40.8]
[1736506855080,0.34159,3318.1,3317.6,3.2078]
[1736506855279,0.34159,3318.1,3317.8,0.30141]
[1736506855480,0.3014,3318.0,3317.7,0.30142]
[1736506855777,0.34159,3318.1,3317.9,0.3014]
[1736506856281,0.0402,3318.1,3317.7,0.30142]
[1736506856489,0.3014,3318.0,3317.6,44.0078]
[1736506856980,0.0402,3318.1,3318.0,0.3014]
[1736506857181,0.0402,3318.1,3318.0,5.3505897]
[1736506857880,0.241,3318.3,3318.2,0.30138]
[1736506858281,1.205,3319.3,3319.1,0.3013]
[1736506858481,1.205,3319.3,3319.1,5.3504897]
[1736506858875,1.205,3319.3,3319.1,44.3091]
[1736506859386,0.3931,3319.2,3319.1,44.3091]
[1736506859581,0.3931,3319.2,3319.1,46.1504897]
[1736506859774,0.3931,3319.2,3319.1,44.3091]
[1736506860374,0.3931,3319.2,3319.1,46.1504897]
[1736506860579,0.241,3319.2,3319.1,51.1504897]
[1736506860780,1.205,3319.3,3319.2,0.30129]
[1736506861181,0.2409,3319.9,3319.2,5.0]
[1736506861382,0.2409,3319.9,3319.8,5.3504197]
[1736506861885,0.4818,3319.9,3319.8,5.3504197]
[1736506863283,1.6866,3319.9,3319.8,5.3504197]
[1736506864186,1.1866,3319.9,3319.8,5.3504197]
[1736506864487,0.0744,3319.9,3319.8,10.3504197]
[1736506865385,0.0997,3319.9,3319.8,5.3504197]
[1736506865583,0.3406,3319.9,3319.8,5.3504197]
[1736506865989,0.3406,3319.9,3319.8,46.1504197]
[1736506867691,3.2078,3320.9,3319.8,45.8491897]
[1736506867880,3.2078,3320.9,3320.3,3.2078]
[1736506868085,0.30116,3320.7,3320.4,0.30117]
[1736506868285,3.2078,3320.9,3320.3,3.2078]
[1736506868488,0.30115,3320.8,3320.6,0.30116]
[1736506868989,1.60495,3320.8,3320.6,0.30116]
[1736506869190,1.60495,3320.8,3320.3,3.2078]
[1736506869388,0.30115,3320.7,3320.5,0.30117]
[1736506869791,0.30118,3320.4,3319.9,3.50902]
[1736506869983,0.30122,3320.0,3319.9,3.2078]
[1736506870481,0.30121,3320.1,3319.9,3.2078]
[1736506870687,0.30122,3320.0,3319.9,3.2078]
[1736506871089,0.30124,3319.8,3319.5,3.50906]
[1736506871586,0.30122,3320.0,3319.7,0.30124]
[1736506872786,0.4346,3320.1,3319.5,3.2078]
[1736506872986,3.50903,3319.9,3319.6,0.30124]
[1736506873386,3.2078,3319.9,3319.5,3.2078]
[1736506873587,3.2078,3319.9,3319.8,0.30123]
[1736506873787,3.2078,3319.9,3319.7,0.30124]
[1736506873988,3.2078,3319.9,3319.8,0.30123]
[1736506874192,0.4346,3320.1,3319.5,5.0491897]
[1736506874387,3.6683,3320.3,3320.1,0.30121]
[1736506874589,3.6683,3320.3,3320.2,0.3012]
[1736506874590,0.4605,3320.3,3320.2,0.3012]
[1736506875993,3.6683,3320.3,3319.5,5.0491897]
[1736506876189,0.30122,3320.0,3319.8,0.30123]
[1736506876599,0.30122,3320.0,3319.8,41.10123]
[1736506877297,3.6683,3320.3,3319.8,40.8]
[1736506877500,1.21682,3319.9,3319.8,40.8]
[1736506877702,1.21682,3319.9,3319.5,3.2078]
[1736506877898,0.9156,3319.9,3319.5,3.2078]
[1736506878097,0.30125,3319.7,3319.5,3.50906]
[1736506878304,0.30124,3319.8,3319.6,40.8]
[1736506878804,1.8413897,3319.7,3318.5,3.2078]
[1736506879001,3.2078,3319.3,3318.9,0.30131]
[1736506879200,0.30132,3318.9,3318.7,0.30133]
[1736506879497,3.2078,3319.3,3318.5,3.2078]
[1736506879498,3.2078,3319.3,3318.6,40.8]
[1736506879699,0.30135,3318.5,3318.2,0.30137]
[1736506879904,0.30137,3318.4,3318.1,0.30138]
[1736506880106,2.2846897,3318.8,3318.0,3.2078]
[1736506880107,0.4723,3318.7,3318.0,3.2078]
[1736506880406,0.30136,3318.5,3318.2,41.10137]
[1736506880612,0.30137,3318.3,3318.0,3.2078]
[1736506881308,0.30138,3318.2,3318.1,40.8]
[1736506881700,0.30138,3318.2,3318.0,3.2078]
[1736506881701,3.2078,3318.4,3317.7,0.30142]
[1736506882008,3.2078,3318.4,3317.6,3.2078]
[1736506882208,0.3014,3318.0,3317.7,0.30142]
[1736506882501,3.2078,3318.4,3317.6,3.2078]
[1736506882502,0.30138,3318.3,3317.6,3.2078]
[1736506882700,0.30137,3318.4,3317.7,0.30142]
[1736506882901,0.30137,3318.3,3318.0,0.30139]
[1736506883095,1.7133,3318.7,3317.6,3.2078]
[1736506883304,0.30138,3318.2,3317.9,0.3014]
[1736506884503,0.30137,3318.3,3318.0,0.3014]
[1736506884706,0.30137,3318.3,3317.6,3.2078]
[1736506884898,0.30138,3318.3,3318.0,0.3014]
[1736506885504,0.30137,3318.3,3317.7,0.30142]
[1736506885696,0.30137,3318.3,3318.0,0.3014]
[1736506886306,0.30139,3318.1,3317.6,3.2078]
[1736506886506,0.30139,3318.1,3317.8,0.30141]
[1736506886704,2.46664,3318.7,3317.6,3.2078]
[1736506887009,0.30139,3318.1,3317.9,40.8]
[1736506887211,0.4723,3318.7,3318.0,3.2078]
[1736506887410,3.6511,3318.8,3318.7,0.30133]
[1736506887915,3.6511,3318.8,3318.5,0.30135]
[1736506887916,3.95243,3318.8,3318.5,0.30135]
[1736506888205,0.30137,3318.4,3318.1,0.30139]
[1736506888411,0.30136,3318.5,3318.1,0.30139]
[1736506888609,0.4358,3318.7,3318.2,40.8]
[1736506888809,0.30134,3318.6,3318.3,0.30137]
[1736506889106,0.4358,3318.7,3318.2,40.8]
[1736506889308,4.7894,3318.8,3318.2,40.8]
[1736506889508,4.3461,3318.8,3318.2,40.8]
[1736506889708,4.3461,3318.8,3318.6,0.30134]
[1736506889907,0.30134,3318.7,3318.2,40.8]
[1736506890106,4.3461,3318.8,3318.2,40.8]
[1736506890304,4.3461,3318.8,3318.5,0.30135]
[1736506890706,4.3461,3318.8,3318.7,0.30133]
[1736506892014,4.3461,3318.8,3318.5,0.4344]
[1736506892418,4.64743,3318.8,3318.6,0.30134]
[1736506893418,0.30133,3318.7,3318.6,0.30134]
[1736506894218,4.3461,3318.8,3318.2,40.8]
[1736506894419,0.30134,3318.7,3318.2,40.8]
[1736506894614,4.64743,3318.8,3318.3,0.30137]
[1736506894920,4.3461,3318.8,3318.6,0.30134]
[1736506895108,0.30133,3318.7,3318.6,0.30134]
[1736506895313,4.3461,3318.8,3318.7,0.30133]
[1736506896520,4.3461,3318.8,3318.4,3.2078]
[1736506896521,4.64742,3318.8,3318.6,0.30134]
[1736506896715,4.64742,3318.8,3318.7,0.30133]
[1736506897223,4.3461,3318.8,3318.7,0.30133]
[1736506897814,4.3461,3318.8,3318.4,3.2078]
[1736506898022,0.30135,3318.5,3318.3,0.30137]
[1736506898221,0.30137,3318.4,3318.2,40.8]
[1736506898421,0.30137,3318.4,3318.1,0.30138]
[1736506898817,0.30137,3318.4,3318.2,0.30138]
[1736506899118,0.4393,3318.7,3318.2,40.8]
[1736506899323,0.30137,3318.4,3318.2,41.10138]
[1736506899825,0.4393,3318.7,3318.0,3.2078]
[1736506900013,0.30138,3318.2,3318.0,3.50919]
[1736506900217,0.30138,3318.2,3318.1,40.8]
[1736506900412,0.30135,3318.5,3318.0,3.2078]
[1736506900626,0.30139,3318.2,3318.0,3.2078]
[1736506900923,0.30138,3318.3,3318.1,0.30138]
[1736506901322,1.6864,3318.6,3318.0,3.2078]
[1736506901622,0.30142,3317.8,3317.6,0.30142]
[1736506902324,3.2078,3318.3,3317.5,0.4611]
[1736506902622,0.30141,3317.9,3317.7,0.30142]
[1736506902924,3.2078,3318.3,3317.5,0.4611]
[1736506903221,3.2078,3318.3,3317.7,3.2078]
[1736506903428,1.6864,3318.6,3318.2,0.30138]
[1736506903722,3.6471,3318.7,3318.0,1.84302127]
[1736506903723,0.4393,3318.7,3318.3,3.2078]
[1736506903930,1.1383,3318.8,3318.3,5.05082127]
[1736506904120,1.1383,3318.8,3318.7,0.30133]
[1736506904821,1.1383,3318.8,3318.3,5.05082127]
[1736506905030,1.43962,3318.8,3318.6,0.30134]
[1736506905827,0.30136,3318.4,3318.3,3.2078]
[1736506906217,0.30136,3318.4,3318.1,0.4671]
[1736506906218,0.75336,3318.6,3317.9,0.3014]
[1736506906424,0.30139,3318.1,3317.7,3.2078]
[1736506906618,0.3014,3318.0,3317.9,0.3014]
[1736506906817,0.3014,3318.0,3317.7,3.2078]
[1736506906818,0.30139,3318.1,3318.0,0.3014]
[1736506907026,0.4328,3318.3,3318.1,0.30138]
[1736506907227,0.73417,3318.3,3318.1,0.30138]
[1736506907427,0.30138,3318.2,3318.1,0.30138]
[1736506907619,0.73418,3318.3,3318.1,0.30138]
[1736506907815,0.30138,3318.2,3318.0,0.30139]
[1736506908220,0.30138,3318.2,3318.1,40.8]
[1736506910924,0.3014,3318.0,3317.8,0.30141]
[1736506911119,3.6406,3318.3,3317.8,0.30141]
[1736506911327,1.1513,3318.0,3317.8,41.10141]
[1736506911626,1.4527,3318.0,3317.8,41.10141]
[1736506911816,1.1513,3318.0,3317.9,0.30141]
[1736506913429,1.4527,3318.0,3317.8,41.10141]
[1736506913628,1.1513,3318.0,3317.8,40.8]
[1736506913824,1.1513,3318.0,3317.9,0.30141]
[1736506914422,1.4527,3318.0,3317.9,0.30141]
[1736506915124,1.4527,3318.0,3317.8,41.10141]
[1736506915426,1.1513,3318.0,3317.9,0.30141]
[1736506915817,1.4527,3318.0,3317.8,0.30141]
[1736506916731,1.1513,3318.0,3317.7,40.8]
[1736506916931,0.30141,3317.9,3317.7,41.10142]
[1736506917231,1.4527,3318.0,3317.8,0.30141]
[1736506917429,1.1513,3318.0,3317.7,40.8]
[1736506917621,0.30142,3317.8,3317.6,0.77283]
[1736506917821,0.30142,3317.8,3317.6,0.4714]
[1736506918025,0.30142,3317.8,3317.7,0.30142]
[1736506918229,1.1513,3318.0,3317.7,0.30142]
[1736506918522,1.1513,3318.0,3317.4,40.8]
[1736506918728,0.30143,3317.7,3317.5,0.30144]
[1736506919224,0.30143,3317.7,3317.4,40.8]
[1736506919525,0.8843,3317.9,3317.4,40.8]
[1736506919526,1.18571,3317.9,3317.7,0.30142]